bitfinex-derivatives/quotes_SOLF0:USTF0_20250221
["timestamp","ask_amount","ask_price","bid_price","bid_amount"]
[1740156452033,1.7303,174.42,174.34,37.60206758]
[1740156452238,194.0,174.43,174.37,37.60206758]
[1740156452440,5.7326,174.41,174.37,37.60206758]
[1740156452845,194.0,174.43,174.37,37.60206758]
[1740156453343,5.7324,174.41,174.38,0.0366439]
[1740156453544,0.03956557,174.42,174.38,0.0366439]
[1740156454145,5.7323,174.41,174.38,0.0366439]
[1740156454338,0.03956557,174.42,174.38,0.0366439]
[1740156454542,0.03956557,174.42,174.4,37.60206758]
[1740156454942,194.0,174.48,174.43,37.60206758]
[1740156455144,194.0,174.48,174.4,37.60206758]
[1740156455345,5.7323,174.41,174.4,37.60206758]
[1740156455646,194.0,174.48,174.37,37.60206758]
[1740156455840,196.86228192,174.47,174.37,37.60206758]
[1740156456040,0.04406485,174.44,174.41,7.35e-06]
[1740156456441,5.732,174.43,174.41,7.35e-06]
[1740156456648,0.04406485,174.44,174.41,7.35e-06]
[1740156459137,5.732,174.42,174.41,7.35e-06]
[1740156464152,5.732,174.42,174.41,37.60207493]
[1740156465245,194.0,174.43,174.41,37.60207493]
[1740156466454,5.732,174.42,174.41,37.60207493]
[1740156466651,5.732,174.42,174.41,7.35e-06]
[1740156468353,0.04406485,174.44,174.41,7.35e-06]
[1740156468552,1.05390208,174.5,174.43,23.23743681]
[1740156468753,1.05390208,174.49,174.43,23.23743681]
[1740156468952,156.52896791,174.51,174.43,23.23743681]
[1740156469157,1.0537162,174.5,174.43,23.23743681]
[1740156469351,1.0537162,174.5,174.4,23.23743681]
[1740156469551,5.7323,174.41,174.4,23.23743681]
[1740156470154,5.7323,174.41,174.39,0.03882006]
[1740156470350,5.7326,174.4,174.39,0.03882006]
[1740156470954,0.04366851,174.42,174.39,23.27625687]
[1740156471350,0.04366851,174.42,174.39,29.00915687]
[1740156472153,0.04366851,174.42,174.39,23.27625687]
[1740156472758,0.04366851,174.42,174.39,29.00895687]
[1740156473352,0.04366851,174.42,174.39,23.27625687]
[1740156473560,1.05375206,174.52,174.39,23.27625687]
[1740156473861,23.53858422,174.53,174.42,28.96933681]
[1740156474061,5.7305,174.47,174.42,28.96933681]
[1740156474357,10.35768422,174.54,174.45,23.23743681]
[1740156474756,0.03647123,174.51,174.48,0.04241611]
[1740156475655,5.7293,174.5,174.48,0.04241611]
[1740156476257,5.7297,174.49,174.48,0.04241611]
[1740156477459,5.7306,174.47,174.43,5.7316]
[1740156477660,0.03647123,174.51,174.43,23.23743681]
[1740156477861,28.5958,174.55,174.4,23.23743681]
[1740156478061,1.05351671,174.54,174.38,5.7333]
[1740156478466,17.14,174.52,174.37,23.23743681]
[1740156478656,17.14,174.52,174.44,3.99e-06]
[1740156478657,0.03615958,174.48,174.44,3.99e-06]
[1740156478861,9.63615958,174.48,174.44,3.99e-06]
[1740156479062,1.05351671,174.47,174.44,3.99e-06]
[1740156479265,5.731,174.45,174.44,3.99e-06]
[1740156479870,6.78493747,174.45,174.44,3.99e-06]
[1740156480264,5.731,174.45,174.44,3.99e-06]
[1740156480561,0.04302556,174.46,174.44,3.99e-06]
[1740156481162,5.731,174.45,174.44,3.99e-06]
[1740156481359,156.52896791,174.49,174.44,3.99e-06]
[1740156481568,161.22528565,174.5,174.46,23.23743681]
[1740156481968,161.22528565,174.5,174.47,5.7303]
[1740156482165,161.22528565,174.5,174.49,23.23743681]
[1740156482767,0.03721774,174.51,174.49,23.23743681]
[1740156482964,0.03721774,174.51,174.48,0.0415748]
[1740156484265,0.03721774,174.51,174.48,23.27901161]
[1740156484966,0.03721774,174.51,174.49,5.7295]
[1740156485168,0.03721774,174.51,174.48,23.27901161]
[1740156486168,0.03721774,174.51,174.5,5.7293]
[1740156486369,0.03721774,174.51,174.48,23.27901161]
[1740156486370,1.05323365,174.59,174.48,23.27901161]
[1740156486563,1.05323365,174.6,174.48,23.23743681]
[1740156486763,1.05312484,174.59,174.48,23.23743681]
[1740156486968,9.6,174.61,174.48,23.23743681]
[1740156487271,1.05303492,174.6,174.48,23.23743681]
[1740156487468,0.04032104,174.56,174.53,0.0375765]
[1740156487772,5.728,174.54,174.53,0.0375765]
[1740156487972,5.728,174.54,174.53,7.65e-05]
[1740156488170,6.78147466,174.54,174.53,7.65e-05]
[1740156488570,5.728,174.54,174.53,7.65e-05]
[1740156489274,6.78140464,174.54,174.53,7.65e-05]
[1740156489470,6.7814223,174.54,174.53,7.65e-05]
[1740156490364,0.04032104,174.56,174.53,7.65e-05]
[1740156490965,5.728,174.54,174.53,7.65e-05]
[1740156491278,41.4408406,174.54,174.38,3.6373]
[1740156491468,5.7313,174.45,174.38,3.6373]
[1740156491779,9.6,174.51,174.38,3.6373]
[1740156491968,2.90027525,174.5,174.38,34.73723157]
[1740156492172,1.05377525,174.49,174.38,32.88633157]
[1740156492372,0.0438282,174.46,174.42,0.04129006]
[1740156492870,5.7316,174.43,174.42,0.04129006]
[1740156493274,5.7316,174.43,174.42,9.006e-05]
[1740156494076,6.78569861,174.43,174.42,9.006e-05]
[1740156494274,6.78570041,174.43,174.42,9.006e-05]
[1740156494475,5.7316,174.43,174.42,9.006e-05]
[1740156495086,6.78571513,174.43,174.42,9.006e-05]
[1740156495483,23.93571513,174.43,174.42,9.006e-05]
[1740156495986,18.20411513,174.43,174.29,26.80023681]
[1740156496177,17.15,174.41,174.29,3.5628]
[1740156496379,27.80411513,174.4,174.26,24.94183681]
[1740156496580,1.05411513,174.39,174.26,1.7044]
[1740156497090,0.04165713,174.34,174.31,0.04073504]
[1740156497802,5.7353,174.32,174.31,0.04073504]
[1740156499587,5.7353,174.32,174.31,3.504e-05]
[1740156499888,6.78999103,174.32,174.31,3.504e-05]
[1740156501091,5.7353,174.32,174.31,3.504e-05]
[1740156501389,0.04165713,174.34,174.31,3.504e-05]
[1740156502491,5.7349,174.33,174.31,3.504e-05]
[1740156502685,0.04165713,174.34,174.31,3.504e-05]
[1740156503285,0.04165713,174.34,174.2,3.4805]
[1740156503485,0.04165713,174.34,174.08,7.81808111]
[1740156503486,23.23743681,174.34,174.16,23.23743681]
[1740156503685,2.92024283,174.33,174.16,23.23743681]
[1740156503884,2.92024283,174.33,174.19,23.23743681]
[1740156503885,1.05444283,174.32,174.19,23.23743681]
[1740156504087,1.05444283,174.32,174.22,23.23743681]
[1740156504283,1.05444283,174.32,174.2,1.8244]
[1740156504488,0.04269776,174.29,174.2,1.8244]
[1740156504683,5.7383,174.23,174.2,1.8244]
[1740156504991,9.6,174.29,174.16,23.23743681]
[1740156505191,0.04225006,174.23,174.16,28.97793681]
[1740156505391,0.04225006,174.23,174.16,23.23743681]
[1740156505785,5.7386,174.22,174.16,28.97793681]
[1740156505988,0.04225006,174.23,174.16,23.23743681]
[1740156506589,0.04225006,174.23,174.14,1.8244]
[1740156507382,0.04225006,174.23,174.09,23.23743681]
[1740156507587,2.80026995,174.23,174.1,1.7174]
[1740156507783,1.05491989,174.22,174.1,1.7174]
[1740156507989,0.03757199,174.18,174.09,0.23228]
[1740156508191,9.6,174.17,174.09,0.23228]
[1740156508495,1.05491989,174.16,174.09,0.23228]
[1740156508889,9.6,174.17,174.11,23.23743681]
[1740156509090,9.6,174.27,174.14,23.23743681]
[1740156509290,1.05529361,174.26,174.17,23.23743681]
[1740156509496,0.03834015,174.22,174.17,23.23743681]
[1740156509695,0.03834015,174.22,174.15,3.6418]
[1740156510794,0.03834015,174.22,174.18,37.87311588]
[1740156510994,0.03834015,174.22,174.21,37.87311588]
[1740156511194,9.6,174.27,174.21,37.87311588]
[1740156511394,11.3001,174.33,174.21,37.87311588]
[1740156511597,1.05487862,174.32,174.21,37.87311588]
[1740156512094,1.05487862,174.32,174.21,43.61191588]
[1740156512395,0.03968829,174.28,174.25,0.03732233]
[1740156512603,5.77658829,174.28,174.25,0.03732233]
[1740156512792,0.03968829,174.28,174.25,0.03732233]
[1740156514102,5.7369,174.27,174.25,0.03732233]
[1740156514302,0.03968829,174.28,174.25,0.03732233]
[1740156515200,5.77658829,174.28,174.25,0.03732233]
[1740156516000,0.03968829,174.28,174.25,0.03732233]
[1740156516603,0.03968829,174.28,174.25,5.77482233]
[1740156517000,0.03968829,174.28,174.25,0.03732233]
[1740156517200,1.14718366,174.34,174.25,5.30022233]
[1740156517602,1.14718366,174.34,174.25,3.58162233]
[1740156518105,1.05465206,174.33,174.25,0.03732233]
[1740156518299,2.82005206,174.33,174.25,0.03732233]
[1740156518500,0.04034366,174.31,174.25,0.03732233]
[1740156518805,5.736,174.3,174.25,0.03732233]
[1740156519002,0.04034366,174.31,174.25,0.03732233]
[1740156519795,5.736,174.3,174.25,0.03732233]
[1740156520203,0.04034366,174.31,174.25,0.03732233]
[1740156520408,5.736,174.3,174.25,0.03732233]
[1740156520597,0.04034366,174.31,174.25,0.03732233]
[1740156521406,5.7372,174.27,174.25,0.03732233]
[1740156522103,0.04034366,174.31,174.25,0.03732233]
[1740156523906,5.7365,174.29,174.25,0.03732233]
[1740156524105,0.04034366,174.31,174.25,5.77482233]
[1740156524305,0.04034366,174.31,174.27,37.87311588]
[1740156525199,0.04034366,174.31,174.28,5.7363]
[1740156525403,0.04034366,174.31,174.27,37.87311588]
[1740156525808,5.7345,174.35,174.28,1.7542]
[1740156526005,9.6,174.38,174.28,1.7542]
[1740156526206,9.6,174.41,174.28,1.7542]
[1740156526407,5.7342,174.36,174.31,5.7354]
[1740156526608,9.6,174.41,174.28,1.7542]
[1740156526802,1.05436256,174.4,174.3,5.7357]
[1740156527108,5.7344,174.35,174.33,0.03768552]
[1740156527506,0.03986917,174.36,174.33,0.03768552]
[1740156528505,5.7345,174.35,174.33,0.03768552]
[1740156528802,0.03986917,174.36,174.33,0.03768552]
[1740156529004,5.7327,174.4,174.35,5.7341]
[1740156529312,11.386,174.47,174.33,37.87311588]
[1740156529609,1.05407993,174.46,174.31,3.6155]
[1740156529903,37.87311588,174.44,174.31,3.6155]
[1740156530103,5.7345,174.35,174.31,3.6155]
[1740156530304,37.87311588,174.38,174.36,6.504e-05]
[1740156530503,15.9777698,174.37,174.26,7.81808111]
[1740156530707,1.0546698,174.36,174.26,7.81808111]
[1740156530903,37.87311588,174.44,174.28,37.87311588]
[1740156531206,37.87311588,174.44,174.22,188.28635842]
[1740156531207,5.7334,174.38,174.31,37.87311588]
[1740156531508,0.03848391,174.38,174.34,37.91387376]
[1740156531805,5.7324,174.41,174.34,37.87311588]
[1740156532008,9.6,174.43,174.34,37.87311588]
[1740156532511,9.6,174.43,174.3,37.87311588]
[1740156532703,9.6,174.43,174.3,23.25779198]
[1740156532909,0.04252418,174.38,174.35,0.0379176]
[1740156534011,5.7339,174.36,174.35,0.0379176]
[1740156534412,0.04252418,174.38,174.35,0.0379176]
[1740156535112,5.7339,174.36,174.35,0.0379176]
[1740156535510,5.7338,174.37,174.35,0.0379176]
[1740156535709,0.04252418,174.38,174.35,0.0379176]
[1740156536809,5.7338,174.37,174.35,0.0379176]
[1740156537308,5.7339,174.36,174.35,0.0379176]
[1740156543623,5.77612418,174.38,174.35,0.0379176]
[1740156543812,0.04252418,174.38,174.35,0.0379176]
[1740156548811,5.7339,174.37,174.35,0.0379176]
[1740156549017,0.04252418,174.38,174.35,0.0379176]
[1740156549916,1.05407725,174.45,174.35,0.0379176]
[1740156550119,1.05407725,174.45,174.35,1.7623176]
[1740156550521,1.05403758,174.44,174.35,23.29570958]
[1740156550725,3.565,174.46,174.35,23.25779198]
[1740156550926,1.05404699,174.45,174.35,23.25779198]
[1740156551130,0.04186179,174.42,174.39,0.04216909]
[1740156551628,5.7326,174.41,174.39,0.04216909]
[1740156551928,0.04186179,174.42,174.39,0.04216909]
[1740156552128,5.7326,174.41,174.39,0.04216909]
[1740156552321,205.4554,174.56,174.42,5.7317]
[1740156552518,9.58,174.51,174.42,23.25779198]
[1740156552826,1.05389544,174.5,174.42,23.25779198]
[1740156553222,5.7299,174.49,174.42,23.25779198]
[1740156553425,1.8413,174.53,174.4,1.6946]
[1740156553627,0.04304036,174.47,174.44,5.77270153]
[1740156553927,5.77344036,174.47,174.44,0.04150153]
[1740156554127,0.04304036,174.47,174.44,0.04150153]
[1740156555426,0.04304036,174.47,174.44,1.53e-06]
[1740156555427,5.731,174.45,174.44,1.53e-06]
[1740156556023,6.78489825,174.45,174.44,1.53e-06]
[1740156556219,16.36489825,174.45,174.44,1.53e-06]
[1740156556524,18.21449825,174.45,174.44,1.53e-06]
[1740156556828,46.85349825,174.45,174.32,7.81808111]
[1740156557026,17.15,174.43,174.32,7.81808111]
[1740156557228,1.05389825,174.42,174.32,7.81808111]
[1740156557528,5.7349,174.34,174.32,7.81808111]
[1740156557829,40.47779198,174.44,174.32,7.81808111]
[1740156558017,0.03833143,174.35,174.32,7.81808111]
[1740156558224,12.5760603,174.45,174.32,7.81808111]
[1740156558521,0.03624512,174.35,174.33,23.25779198]
[1740156558726,5.7331,174.39,174.33,25.03899198]
[1740156558932,0.04168135,174.36,174.33,25.03899198]
[1740156559226,1.05418994,174.44,174.3,23.25779198]
[1740156559424,0.03720716,174.36,174.33,0.03767601]
[1740156559618,5.7343,174.35,174.33,0.03767601]
[1740156559925,0.03795086,174.36,174.33,0.03928973]
[1740156560525,5.7343,174.35,174.33,0.03928973]
[1740156560728,0.03795086,174.36,174.33,0.03928973]
[1740156562426,0.03795086,174.36,174.34,5.7346]
[1740156562626,1.1464603,174.45,174.35,23.25779198]
[1740156562823,9.58,174.49,174.39,23.25779198]
[1740156563028,1.05381605,174.48,174.39,23.25779198]
[1740156563225,1.05381605,174.48,174.42,23.25779198]
[1740156563421,5.7314,174.44,174.42,23.25779198]
[1740156564028,5.7316,174.43,174.42,23.25779198]
[1740156564230,0.03852541,174.45,174.42,23.25779198]
[1740156564530,1.856,174.5,174.42,28.98979198]
[1740156564531,5.7303,174.48,174.42,28.98979198]
[1740156564731,1.856,174.5,174.45,23.25779198]
[1740156565127,5.7304,174.47,174.45,23.25779198]
[1740156565334,1.856,174.5,174.45,23.25779198]
[1740156565532,0.03833052,174.48,174.45,23.25779198]
[1740156565729,5.7306,174.47,174.45,23.25779198]
[1740156566026,0.03833052,174.48,174.45,23.25779198]
[1740156566232,0.03833052,174.48,174.44,0.03820445]
[1740156567027,5.731,174.45,174.44,0.03820445]
[1740156568033,5.731,174.45,174.44,4.45e-06]
[1740156569633,0.03833052,174.48,174.44,4.45e-06]
[1740156570336,5.7306,174.47,174.44,4.45e-06]
[1740156570729,3.4445,174.52,174.46,23.25779198]
[1740156570929,5.7289,174.52,174.49,23.25779198]
[1740156571130,9.93967299,174.56,174.49,23.25779198]
[1740156571432,5.7293,174.5,174.49,23.25779198]
[1740156571930,0.04346205,174.51,174.49,23.25779198]
[1740156572130,1.05345714,174.58,174.49,23.25779198]
[1740156572331,0.0409775,174.52,174.49,23.25779198]
[1740156572531,5.7293,174.5,174.49,23.25779198]
[1740156572733,0.0409775,174.52,174.49,0.03772194]
[1740156572933,5.7293,174.5,174.49,0.03772194]
[1740156573134,0.0409775,174.52,174.49,0.03772194]
[1740156573432,1.05341873,174.56,174.5,37.73163115]
[1740156573631,5.7283,174.54,174.5,37.73163115]
[1740156574329,5.7278,174.55,174.5,37.73163115]
[1740156574533,0.03947605,174.54,174.5,37.76955851]
[1740156575128,5.76777605,174.54,174.5,37.76955851]
[1740156576134,0.03947605,174.54,174.5,37.76955851]
[1740156576538,0.03947605,174.54,174.5,0.03792736]
[1740156576733,0.03947605,174.54,174.51,37.73163115]
[1740156577527,0.03947605,174.54,174.51,43.46043115]
[1740156577727,5.7272,174.57,174.51,37.73163115]
[1740156577933,5.7272,174.57,174.54,37.73163115]
[1740156577934,2.9154,174.57,174.54,37.73163115]
[1740156578135,3.4885,174.65,174.54,37.73163115]
[1740156578436,1.05303744,174.64,174.52,1.7447]
[1740156578634,2.89303744,174.64,174.52,1.7447]
[1740156578834,1.05303744,174.63,174.52,1.7447]
[1740156579137,0.04029093,174.6,174.56,0.03961621]
[1740156580033,5.7271,174.57,174.56,0.03961621]
[1740156580238,5.7271,174.57,174.56,1.621e-05]
[1740156580442,6.78034381,174.57,174.56,1.621e-05]
[1740156584040,1.05324381,174.57,174.56,1.621e-05]
[1740156584235,0.04029093,174.6,174.56,37.73164736]
[1740156584736,5.7271,174.57,174.56,37.73164736]
[1740156584937,5.7271,174.57,174.56,1.621e-05]
[1740156585736,6.78035284,174.57,174.56,1.621e-05]
[1740156587741,6.78039702,174.57,174.56,1.621e-05]
[1740156589442,6.78063584,174.57,174.56,1.621e-05]
[1740156589841,6.78045993,174.57,174.56,1.621e-05]
[1740156590947,6.78037567,174.57,174.56,1.621e-05]
[1740156592640,6.78042284,174.57,174.56,1.621e-05]
[1740156593045,10.50932284,174.57,174.56,1.621e-05]
[1740156593351,20.41472829,174.57,174.56,1.621e-05]
[1740156593744,10.50932284,174.57,174.56,1.621e-05]
[1740156594254,19.56931476,174.57,174.56,1.621e-05]
[1740156594550,10.50932284,174.57,174.56,1.621e-05]
[1740156595954,10.50961117,174.57,174.56,1.621e-05]
[1740156597455,27.72957222,174.57,174.56,1.621e-05]
[1740156597661,5.7314,174.44,174.4,23.23027366]
[1740156597959,23.23027366,174.55,174.37,23.23027366]
[1740156597960,9.56,174.51,174.37,23.23027366]
[1740156598155,1.05373261,174.5,174.37,23.23027366]
[1740156598757,0.03882428,174.45,174.42,0.03875316]
[1740156599355,5.7313,174.44,174.42,0.03875316]
[1740156599758,0.03882428,174.45,174.42,0.03875316]
[1740156599959,5.7316,174.43,174.42,0.03875316]
[1740156600457,0.03882428,174.45,174.42,0.03875316]
[1740156600653,1.05385074,174.5,174.43,23.23027366]
[1740156600849,1.05385074,174.5,174.42,0.03875316]
[1740156600850,1.05385074,174.55,174.46,23.23027366]
[1740156601053,1.05346109,174.54,174.46,23.23027366]
[1740156601254,1.05346109,174.53,174.46,23.23027366]
[1740156601456,3.7289,174.57,174.46,23.23027366]
[1740156601859,0.03870643,174.53,174.5,0.04166546]
[1740156602458,5.729,174.51,174.5,0.04166546]
[1740156602654,5.729,174.51,174.5,6.546e-05]
[1740156602860,6.78273129,174.51,174.5,6.546e-05]
[1740156603963,6.78272062,174.51,174.5,6.546e-05]
[1740156604560,11.4595,174.49,174.34,7.81808111]
[1740156604865,31.47542062,174.48,174.34,7.81808111]
[1740156605054,1.05372062,174.47,174.34,7.81808111]
[1740156605253,5.7343,174.35,174.34,7.81808111]
[1740156606463,0.04125372,174.36,174.34,7.81808111]
[1740156606660,5.77525372,174.36,174.34,7.81808111]
[1740156607563,0.04125372,174.36,174.34,7.81808111]
[1740156607860,0.04125372,174.36,174.33,0.03989237]
[1740156611368,13.2017,174.48,174.35,23.23027366]
[1740156611561,1.05404687,174.47,174.38,23.23027366]
[1740156611867,1.05404687,174.47,174.41,23.23027366]
[1740156612368,9.56,174.52,174.44,23.23027366]
[1740156612563,0.03671797,174.46,174.44,23.23027366]
[1740156612760,5.7303,174.48,174.44,23.23027366]
[1740156612966,9.56,174.52,174.41,23.23027366]
[1740156613269,9.56,174.52,174.43,2.107e-05]
[1740156613270,5.7313,174.44,174.43,2.107e-05]
[1740156613659,1.05398682,174.44,174.35,23.23027366]
[1740156613862,5.7333,174.38,174.35,23.23027366]
[1740156614062,23.23027366,174.49,174.35,23.23027366]
[1740156614257,5.7333,174.38,174.35,23.23027366]
[1740156614464,5.7765698,174.38,174.35,23.27422058]
[1740156614768,0.0432698,174.38,174.35,23.27422058]
[1740156615373,0.0432698,174.38,174.35,0.04394692]
[1740156615865,0.0432698,174.38,174.35,4.692e-05]
[1740156616167,5.7339,174.36,174.35,4.692e-05]
[1740156617060,5.7765698,174.38,174.35,23.23032058]
[1740156617367,17.22,174.53,174.35,23.23032058]
[1740156617368,5.502,174.48,174.35,23.23032058]
[1740156617567,1.05402388,174.47,174.38,23.23027366]
[1740156617764,5.7307,174.46,174.38,23.23027366]
[1740156618068,9.90301039,174.54,174.44,23.23027366]
[1740156618267,9.90301039,174.54,174.4,23.23027366]
[1740156618661,0.0438679,174.51,174.47,0.03916418]
[1740156618858,5.73,174.48,174.41,26.79627366]
[1740156619162,0.03670029,174.51,174.47,0.0364518]
[1740156619366,1.04588739,174.54,174.42,5.7319]
[1740156619561,0.03859974,174.48,174.45,0.03734228]
[1740156620157,5.7307,174.46,174.45,0.03734228]
[1740156620365,0.03859974,174.48,174.45,0.03734228]
[1740156620669,5.7306,174.47,174.45,0.03734228]
[1740156621064,0.03859974,174.48,174.45,0.03734228]
[1740156621269,5.7307,174.46,174.45,4.228e-05]
[1740156621471,6.7768084,174.46,174.45,4.228e-05]
[1740156622866,6.77693661,174.46,174.45,4.228e-05]
[1740156623868,6.77693661,174.46,174.29,23.23027366]
[1740156623869,2.19263119,174.46,174.29,23.23027366]
[1740156624069,23.23027366,174.44,174.29,23.23027366]
[1740156624364,5.735,174.33,174.29,23.23027366]
[1740156624669,23.23027366,174.44,174.29,23.23027366]
[1740156624870,5.7346,174.34,174.29,23.23027366]
[1740156625072,0.03755133,174.38,174.35,0.03831316]
[1740156625370,5.7339,174.37,174.3,5.7357]
[1740156625670,0.03854011,174.38,174.35,0.03925403]
[1740156625868,0.03854011,174.38,174.32,23.23027366]
[1740156626061,1.0465439,174.42,174.35,0.04080476]
[1740156626267,0.04382056,174.37,174.35,0.04080476]
[1740156626469,9.54,174.43,174.35,0.04080476]
[1740156626671,5.7324,174.41,174.35,0.04080476]
[1740156626871,5.7324,174.41,174.35,23.27107842]
[1740156627178,5.732,174.42,174.36,5.7339]
[1740156627374,5.732,174.42,174.35,23.27107842]
[1740156627569,0.03616656,174.41,174.38,23.23027366]
[1740156628073,5.7313,174.44,174.38,23.23027366]
[1740156628376,3.5178,174.49,174.38,23.23027366]
[1740156628570,1.04610908,174.48,174.38,23.23027366]
[1740156628769,1.04610908,174.48,174.33,5.307]
[1740156628973,5.7322,174.42,174.35,23.23027366]
[1740156629165,5.7322,174.42,174.39,0.04331017]
[1740156629371,0.0419796,174.42,174.39,0.04331017]
[1740156629576,5.7323,174.41,174.39,0.04331017]
[1740156629870,0.0419796,174.42,174.39,0.04331017]
[1740156630268,5.7326,174.4,174.39,1.017e-05]
[1740156630467,6.77876111,174.4,174.39,1.017e-05]
[1740156630664,5.7324,174.41,174.39,1.017e-05]
[1740156631065,0.0419796,174.42,174.39,1.017e-05]
[1740156631272,5.7326,174.4,174.39,1.017e-05]
[1740156631575,0.0419796,174.42,174.39,1.017e-05]
[1740156631872,5.7739796,174.42,174.39,1.017e-05]
[1740156632075,0.0419796,174.42,174.39,1.017e-05]
[1740156632273,5.7307,174.46,174.4,5.7325]
[1740156632478,9.54,174.51,174.38,23.23027366]
[1740156632670,1.04603212,174.5,174.38,23.23027366]
[1740156632872,5.732,174.42,174.38,23.23027366]
[1740156633078,9.54,174.51,174.38,23.23027366]
[1740156633380,0.0406274,174.46,174.43,0.04018216]
[1740156633879,5.7312,174.45,174.43,0.04018216]
[1740156634075,0.0406274,174.46,174.43,0.04018216]
[1740156637974,5.7713274,174.46,174.43,0.04018216]
[1740156638782,5.731,174.45,174.43,0.04018216]
[1740156639182,5.7313,174.45,174.43,0.04018216]
[1740156639382,0.0406274,174.46,174.43,0.04018216]
[1740156639983,5.731,174.45,174.43,0.04018216]
[1740156640278,5.3376,174.57,174.44,23.23027366]
[1740156640478,9.924111,174.59,174.51,5.7287]
[1740156640784,1.04553865,174.58,174.5,23.23027366]
[1740156640979,24.32687641,174.65,174.51,1.7612]
[1740156641284,1.04550432,174.64,174.53,23.23027366]
[1740156641486,0.04031895,174.6,174.56,0.04188109]
[1740156642381,0.04031895,174.6,174.56,23.27215475]
[1740156643884,5.7247,174.65,174.59,28.95637366]
[1740156644381,9.54,174.71,174.59,23.23027366]
[1740156644586,5.725,174.64,174.58,5.7264]
[1740156644982,0.04380904,174.63,174.59,0.04266303]
[1740156645189,23.2740827,174.63,174.46,54.33020523]
[1740156645388,4.58966641,174.62,174.46,54.33020523]
[1740156645586,5.7276,174.56,174.49,5.7296]
[1740156646086,9.54,174.61,174.51,5.7289]
[1740156646087,5.727,174.58,174.51,5.7289]
[1740156646286,3.5446,174.62,174.49,23.23027366]
[1740156646482,0.04141041,174.56,174.53,0.04328745]
[1740156648592,1.7165,174.67,174.55,23.23027366]
[1740156648890,1.04508739,174.66,174.58,23.23027366]
[1740156649083,1.04508739,174.66,174.56,3.7236]
[1740156649287,1.04508739,174.66,174.52,23.23027366]
[1740156649288,1.04508739,174.66,174.52,28.95897366]
[1740156649479,1.04508739,174.66,174.52,5.7287]
[1740156649681,0.04313485,174.61,174.57,0.03714234]
[1740156649881,5.7267,174.58,174.57,0.03714234]
[1740156650891,5.7263,174.6,174.57,0.03714234]
[1740156651185,0.04313485,174.61,174.57,0.03714234]
[1740156651595,5.76893485,174.61,174.57,0.03714234]
[1740156651789,0.04313485,174.61,174.57,0.03714234]
[1740156653793,5.76893485,174.61,174.57,0.03714234]
[1740156653992,0.04313485,174.61,174.57,0.03714234]
[1740156654390,5.76883485,174.61,174.57,0.03714234]
[1740156654589,0.04313485,174.61,174.57,0.03714234]
[1740156656497,5.7267,174.58,174.57,0.03714234]
[1740156657697,5.7267,174.58,174.57,4.234e-05]
[1740156660795,6.77218982,174.58,174.57,4.234e-05]
[1740156661694,6.77220582,174.58,174.57,4.234e-05]
[1740156662095,5.7267,174.58,174.57,4.234e-05]
[1740156662289,6.7721603,174.58,174.57,4.234e-05]
[1740156662796,1.0454603,174.58,174.41,27.62027366]
[1740156662989,23.23027366,174.57,174.41,3.4713]
[1740156663194,23.23027366,174.54,174.38,23.23027366]
[1740156663396,1.04588901,174.53,174.38,23.23027366]
[1740156663695,9.52,174.52,174.41,28.96227366]
[1740156663896,9.52,174.52,174.38,23.23027366]
[1740156664195,0.03869247,174.47,174.44,0.0408975]
[1740156664499,5.731,174.45,174.44,9.75e-05]
[1740156664904,6.77709454,174.45,174.44,9.75e-05]
[1740156666395,5.731,174.45,174.44,9.75e-05]
[1740156666600,6.77732724,174.45,174.44,9.75e-05]
[1740156667996,6.77735621,174.45,174.44,9.75e-05]
[1740156671200,6.77748931,174.45,174.44,9.75e-05]
[1740156672602,5.7309,174.46,174.44,9.75e-05]
[1740156672901,0.03869247,174.47,174.44,9.75e-05]
[1740156673905,0.03869247,174.47,174.44,5.7310975]
[1740156674201,0.03869247,174.47,174.45,23.23027366]
[1740156674506,1.7767,174.56,174.45,23.23027366]
[1740156674507,5.7284,174.53,174.45,23.23027366]
[1740156674999,194.0,174.75,174.52,23.23027366]
[1740156675195,3.6438,174.68,174.55,23.23027366]
[1740156675400,1.04530659,174.67,174.58,23.23027366]
[1740156675606,0.04205377,174.63,174.61,23.23027366]
[1740156675805,1.04530659,174.67,174.61,23.23027366]
[1740156676008,5.7228,174.7,174.61,23.23027366]
[1740156676301,1.04480069,174.69,174.61,23.23027366]
[1740156676496,5.7225,174.71,174.61,23.23027366]
[1740156676700,1.04477014,174.7,174.61,23.23027366]
[1740156676900,1.6981,174.72,174.61,23.23027366]
[1740156677101,0.03717506,174.68,174.64,0.04110276]
[1740156678106,5.7238,174.67,174.64,0.04110276]
[1740156678405,0.03717506,174.68,174.64,0.04110276]
[1740156679104,0.03717506,174.68,174.64,37.70677711]
[1740156680597,1.04463981,174.71,174.67,37.66567435]
[1740156680799,1.04452587,174.76,174.67,37.66567435]